{"text_format":"1","workbook":"xlsx","n_sheets":1,"sheets":["NC"],"not_rendered":{"charts":0,"images":0,"macros":1,"external_links":4,"defined_names":214,"comments":0,"pivot_tables":0},"unopened":[],"bounds":{"document_bytes":16777216,"sheet_cells":100000,"rows_first":2000,"rows_last":500,"rows_between":2000,"halvings":0,"cell_chars":16384,"cell_head_chars":4096},"cells_cut":0,"cells_raw":0,"read":"whole","date_system":"1900"}

{"sheet":"NC","index":0,"n_rows":167,"n_cols":76,"rows_kept":167,"cut":false,"hidden":false,"merged":[[4,77,4,79],[4,75,4,76],[30,0,30,1],[30,2,30,4],[7,0,7,10],[67,12,67,15],[32,6,44,10],[45,0,45,10],[35,0,35,5],[40,0,40,5],[31,0,31,5],[58,0,58,10],[59,0,59,10],[18,0,21,10],[46,0,46,10],[62,0,62,10],[63,0,67,10],[29,0,29,1],[29,2,29,4],[47,0,51,10],[34,0,34,1],[34,2,34,4],[32,0,32,1],[32,2,32,4],[68,45,68,46],[68,48,68,49],[68,36,68,37],[68,39,68,40],[68,42,68,43],[68,16,68,17],[3,0,3,10],[17,0,17,10],[38,0,38,1],[38,2,38,4],[39,0,39,1],[39,2,39,4],[60,0,60,1],[60,2,60,4],[60,6,60,7],[60,8,60,10],[10,0,10,1],[10,2,10,4],[33,0,33,1],[36,2,36,4],[10,8,10,10],[28,0,28,10],[11,6,11,7],[0,8,0,9],[1,8,1,9],[42,0,42,1],[37,2,37,4],[36,0,36,1],[37,0,37,1],[6,0,6,1],[6,2,6,4],[10,6,10,7],[0,0,2,2],[33,2,33,4],[0,3,2,7],[2,8,2,9],[8,0,8,1],[8,2,8,4],[5,6,5,7],[5,8,5,10],[4,0,4,10],[9,0,9,10],[5,0,5,1],[5,2,5,4],[8,6,8,7],[8,8,8,10],[6,6,6,7],[11,8,11,10],[13,6,13,7],[68,61,68,62],[73,0,73,1],[73,2,73,4],[73,6,73,7],[73,8,73,10],[71,0,71,10],[69,0,69,1],[69,2,69,4],[69,6,69,7],[69,8,69,10],[72,0,72,10],[73,48,73,49],[68,58,68,59],[68,55,68,56],[68,21,68,22],[68,24,68,25],[68,27,68,28],[68,30,68,31],[68,33,68,34],[68,51,68,52],[44,0,44,1],[44,2,44,4],[83,0,83,1],[83,2,83,4],[75,0,75,10],[77,0,77,1],[77,2,77,4],[81,0,81,1],[81,2,81,4],[79,0,79,1],[79,2,79,4],[4,71,4,73],[6,8,6,10],[55,0,55,1],[55,2,55,4],[52,0,52,10],[43,0,43,1],[43,2,43,4],[16,0,16,10],[53,0,53,1],[53,2,53,4],[23,0,23,1],[23,2,23,4],[23,6,23,7],[23,8,23,10],[25,0,26,10],[24,0,24,10],[42,2,42,4],[12,8,12,10],[13,8,15,10],[12,6,12,7],[29,6,29,7],[29,8,29,10],[41,0,41,1],[41,2,41,4]]}
[null,null,null,"NON - CONFORMANCE ",null,null,null,null,"DOCUMENT NUMBER:"]
[null,null,null,null,null,null,null,null,"STATUS"]
[null,null,null,null,null,null,null,null,"DATE:"]
[]
["NC RAISED BY ( DETECTION LEVEL):",null,null,null,null,null,null,null,null,null,null,null,null,null,null,null,null,null,null,null,null,null,null,null,null,null,null,null,null,null,null,null,null,null,null,null,null,null,null,null,null,null,null,null,null,null,null,null,null,null,null,null,null,null,null,null,null,null,null,null,null,null,null,null,null,null,null,null,null,null,null,null,null,null,null,{"$f":"IF(BT2=\"SUPPLIER\",\"SUPPLIER ADRRESS:\",IF(BT2=\"INTERNAL\",\"\",IF(BT2=\"\",\"\")))","v":""}]
["NC RAISED BY:",null,"RIANA COASTER",null,null,null,"YOUR DEPARTMENT:",null,"6. HUMAN RESOURCES",null,null,null,null,null,null,null,null,null,null,null,null,null,null,null,null,null,null,null,null,null,null,null,null,null,null,null,null,null,null,null,null,null,null,null,null,null,null,null,null,null,null,null,null,null,null,null,null,null,null,null,null,null,null,null,null,null,null,null,null,null,3,null,2,1]
["NC DATE RAISED:",null,"2013-09-01",null,null,null,"PROCESS EFFECTED:",null,"1.3 PRODUCTION / MANUFACTURING"]
[]
["WHEN WAS IT DETECTED?:",null,"DURING OPERATIONS",null,null,null,"HOW WAS IT DETECTED?:",null,"INSPECTION"]
["NC RAISED AGAINST WHO?"]
["INTERNAL / SUPPLIER:",null,"INTERNAL",null,null,null,{"$f":"IF(C11=\"SUPPLIER\",\"SUPPLIER NAME:\",IF(C11=\"INTERNAL\",\"DEPARTMENT NAME:\",IF(C11=\"\",\"\")))","v":"DEPARTMENT NAME:"},null,{"$f":"IF(G11=\"SUPPLIER NAME:\", \"ENTER SUPPLIER NAME\",IF(G11=\"DEPARTMENT NAME:\",\"ENTER DEPARMENT NAME\",\"\"))","v":"ENTER DEPARMENT NAME"}]
[null,null,null,null,null,null,{"$f":"IF(C11=\"SUPPLIER\",\"CONTACT PERSON:\",IF(C11=\"INTERNAL\",\"\",IF(C11=\"\",\"\")))","v":""},null,{"$f":"IF(G12=\"CONTACT PERSON:\", \"ENTER NAME\",\"\")","v":""}]
[null,null,null,null,null,null,{"$f":"IF(C11=\"SUPPLIER\",\"CONTACT NUMBER:\",IF(C11=\"INTERNAL\",\"\",IF(C11=\"\",\"\")))","v":""},null,{"$f":"IF(G13=\"CONTACT NUMBER:\", \"ENTER PHONE NUMBER\",\"\")","v":""}]
[null,null,null,null,null,null,{"$f":"IF(C11=\"SUPPLIER\",\"SUPPLIER ADRRESS:\",IF(C11=\"INTERNAL\",\"\",IF(C11=\"\",\"\")))","v":""},null,{"$f":"IF(G14=\"SUPPLIER ADRRESS:\", \"ENTER ADRRESS\",\"\")","v":""}]
[]
[]
[]
["NON CONFORMANCE DESCRIPTION"]
[]
[]
[]
[]
[]
["NC DEFECT TYPE?:",null,"TRACEABILITY",null,null,null,"QUICK FIX SOLUTION?:",null,"NO"]
["IF \"YES\" PLEASE PROVIDE A QUICK FIX SOLUTION"]
[]
[]
[]
["NON CONFORMANCE  ACCEPTED BY QUALITY?"]
["NC ACCEPTED:",null,"YES",null,null,null,"NC DATE REVIEWED:",null,"2013-09-05"]
["NC NUMBER:",null,"0002"]
["WITCH DEPARTMENT AND PROCESS DOES THE NC RELATED TO?"]
["DEPARTMENT:",null,"5. PROCUREMENT",null,null,null,"COMMENTS RELATED TO INVESTIGATION"]
["PROCESS:",null,"1.5 LABELLING"]
["PROCESS STEP:",null,"27"]
["NC INVESTIGATION RELATED TO DRILL DOWN MODEL?"]
["RELATED TO:",null,"2.PROCESS"]
["CATEGORY:",null,"2.1 SEQUENCE OF OPERATIONS"]
["ORIGIN:",null,"2.1.2 ITP SEQUENCE NOT FOLLOWED"]
["NC SEVERITY LEVEL:",null,"CRITICAL"]
["WHAT IS THE ACTION TO BE TAKEN AND BY WHO?"]
["DATE DISPOSITION:",null,"2013-09-02"]
["ACTION TO BE TAKEN:",null,"REWORK"]
["PROCESS OWNER:",null,"ANNELEEN MULLER"]
["COMPLETION DUE DATE:",null,"2013-09-16"]
[]
["CORRECTIVE ACTION"]
[]
[]
[]
[]
[]
["VALIDATION OF CORRECTIVE ACTION TAKEN"]
["PROCESS OWNER:",null,"ANNELEEN MULLER",null,null,null,"DATE:",null,null,"SIGN:"]
[]
["QUALITY:",null,null,null,null,null,"DATE:","2013-09-05",null,"SIGN:"]
[]
[]
["CORRECTIVE ACTION COST (FOR COPQ)"]
[]
["ZAR VALUE:",null,50,null,null,null,"MAN POWER HOURS:"]
[]
["PREVENTIVE ACTION "]
[]
[]
[]
[]
[null,null,null,null,null,null,null,null,null,null,null,null,"CONTROLLED DATES"]
[null,null,null,null,null,null,null,null,null,null,null,null,"DATE >",null,"DATE <",null,"NON CONFORMANCE NUM:",null,"0001","REV:",1,"NC RAISED BY:",null,"LEONI STRAUSS","SECTOR",null,"INTERNAL","(LEVEL 1) NC RELATED:",null,"1.PRODUCT","(LEVEL 2) CATEGORY:",null,"1.1 MATERIAL TRACEABILITY","(LEVEL 3) ORIGIN:",null,"1.1.1 MATERIAL MISMATCH","DEPARTMENT:",null,"1. PRODUCTION","MAIN PROCESS:",null,null,"PROCESS OWNER",null,null,"KPA ACTIVITY",null,"1","WHEN WAS IT DETECTED",null,null,"NC DEFECT TYPE:",null,"HOUSE KEEPING",null,"SEVERITY OF NC",null,null,"ACTION TO BE TAKEN:",null,"REWORK","ACTION TO BE TAKEN:",null,"PROCESS CHANGE",null,null,"NC LAST DATE WORKED ON"]
["PREVENTIVE  TAKEN:",null,"PROCEDURE CHANGE",null,null,null,"DOCUMENT REF NUMBER:",null,null,null,null,null,null,{"$f":"TODAY()","v":"2013-09-05"},null,null,null,null,"0002",null,2,null,null,"CHAD REEVELL",null,null,"SUPPLIER",null,null,"2.PROCESS",null,null,"1.2 VISUAL",null,null,null,null,null,"2. QUALITY",null,null,"1.1 RECEIVING",null,null,"CHAD REEVELL",null,null,"2",null,null,"DURING OPERATIONS",null,null,"DAMAGED PRODUCT / PACKAGING",null,null,null,"LOW / INSIGNIFICATE",null,null,"SCRAP",null,null,"PROCEDURE CHANGE",null,null,{"$f":"TODAY()","v":"2013-09-05"}]
[null,null,null,null,null,null,null,null,null,null,null,null,null,{"$f":"N70+1","v":"2013-09-06"},null,{"$f":"P72-1","v":"2013-09-01"},null,null,"0003",null,3,null,null,"ANNANDA HOW",null,null,null,null,null,"3.SYSTEMS",null,null,"1.3 DIMENSIONAL",null,null,"1.2.1 AESTHETICS",null,null,"3. FIANCÉ",null,null,"1.2 MATERIAL STORAGE",null,null,"ANNANDA HOW",null,null,"3",null,null,"AFTER OPERATIONS",null,null,"DEFECTIVE PRODUCT",null,null,null,"MINIMAL",null,null,"USE AS IS",null,null,"POLICY CHANGE"]
["PREVENTIVE ACTION COST ( FOR IMPROVEMENT)",null,null,null,null,null,null,null,null,null,null,null,null,{"$f":"N71+1","v":"2013-09-07"},null,{"$f":"P73-1","v":"2013-09-02"},null,null,"0004",null,4,null,null,"ANNELEEN MULLER",null,null,null,null,null,"4.SERVICES",null,null,null,null,null,"1.2.2 SCRATCHES / DENTS / HAMMER MARKS",null,null,"4. SALES",null,null,"1.3 PRODUCTION / MANUFACTURING",null,null,"ANNELEEN MULLER",null,null,"4",null,null,"AT THE CUSTOMER",null,null,"CONTAMINATION",null,null,null,"MEDIUM / MODERATE",null,null,"UPDATE",null,null,"TRAINING"]
[null,null,null,null,null,null,null,null,null,null,null,null,null,"2013-09-08",null,{"$f":"P74-1","v":"2013-09-03"},null,null,"0005",null,5,null,null,"DAVE REEVELL",null,null,null,null,null,null,null,null,"2.1 SEQUENCE OF OPERATIONS",null,null,"1.2.3 IMPROPER FITMENT",null,null,"5. PROCUREMENT",null,null,"1.4 PACKING",null,null,"DAVE REEVELL",null,null,"5",null,null,null,null,null,"QUANTITY",null,null,null,"CRITICAL",null,null,"IMPLEMENT",null,null,"CONTROL / SYSTEM"]
["ZAR VALUE:",null,null,null,null,null,"MAN POWER HOURS:",null,null,null,null,null,null,"2013-09-09",null,{"$f":"P75-1","v":"2013-09-04"},null,null,"0006",null,null,null,null,"RIANA COASTER",null,null,null,null,null,null,null,null,"2.2 DOCUMENTATION",null,null,null,null,null,"6. HUMAN RESOURCES",null,null,"1.5 LABELLING",null,null,"RIANA COASTER",null,null,"6","HOW  WAS IT DETECTED",null,"OBSERVATION",null,null,"INCORRECT PACKAGING",null,null,null,"VERY CRITICAL"]
[null,null,null,null,null,null,null,null,null,null,null,null,null,"2013-09-10",null,{"$f":"TODAY()","v":"2013-09-05"},null,null,"0007",null,null,null,null,null,null,null,null,null,null,null,null,null,null,{"$f":"IF(C38=\"1.1 MATERRIAL TRACEABILITY\",1,IF(C38=\"1.2 VISUAL\",2,IF(C38=\"1.3 DIMENSIONAL\",3,IF(C38=\"2.1 SEQUENCE OF OPERATIONS\",4,IF(C38=\"2.2 DOCUMENTATION\",5,\"!\")))))","v":4},null,"1.3.1 LINEAR DIMENSIONS",null,null,"7. IT",null,null,"1.6 FINISHED PRODUCT STORAGE",null,null,"QUENTIN KLEIN SMITH",null,null,"7",null,null,"INSPECTION",null,null,"INCORRECT PROCESS",null,null,null,"CATASTROPHIC"]
["VALIDATION AND NC CLOSE OUT",null,null,null,null,null,null,null,null,null,null,null,null,"2013-09-11",null,null,null,null,"0008",null,null,null,null,null,null,null,null,null,null,null,null,null,"3.1",null,null,"1.3.2 SURFACE FINISH",null,null,"8. ENGINEERING",null,null,"1.7 DISPATCH",null,null,null,null,null,"8",null,null,"CUSTOMER COMPLAINT",null,null,"INCORRECT DOCUMENT USE"]
[null,null,null,null,null,null,null,null,null,null,null,null,null,"2013-09-12",null,null,null,null,"0009",null,null,null,null,null,null,null,null,null,null,null,null,null,"3.2",null,null,null,null,null,null,null,null,null,null,null,null,null,null,"9",null,null,"AUDIT",null,null,"TRACEABILITY"]
["ORIGINATOR:",null,{"$f":"C6","v":"RIANA COASTER"},null,null,null,"DATE:",null,null,"SIGN:",null,null,null,"2013-09-13",null,null,null,null,"0010",null,null,null,null,null,null,null,null,null,null,null,null,null,null,null,null,null,null,null,null,null,null,"2.1 QUALITY CONTROL INSPECTION",null,null,null,null,null,"10",null,null,null,null,null,"VERIFICATION OF EQUIPMENT"]
[null,null,null,null,null,null,null,null,null,null,null,null,null,"2013-09-14",null,null,null,null,"0011",null,null,null,null,null,null,null,null,null,null,null,null,null,"4.1",null,null,"2.1.1 PRODUCTION ISSUES",null,null,null,null,null,"2.2 ",null,null,null,null,null,"11"]
["PROCESS OWNER",null,{"$f":"C54","v":"ANNELEEN MULLER"},null,null,null,"DATE:","2013-09-02",null,"SIGN:",null,null,null,"2013-09-15",null,null,null,null,"0012",null,null,null,null,null,null,null,null,null,null,null,null,null,"4.2",null,null,"2.1.2 ITP SEQUENCE NOT FOLLOWED",null,null,null,null,null,"2.3",null,null,null,null,null,"12"]
[null,null,null,null,null,null,null,null,null,null,null,null,null,"2013-09-16",null,null,null,null,"0013",null,null,null,null,null,null,null,null,null,null,null,null,null,null,null,null,"2.1.3 TESTS NOT OFFERED  AS PER ITP",null,null,null,null,null,"2.4",null,null,null,null,null,"13",null,null,null,null,null,"YES"]
["FINANCE:",null,null,null,null,null,"DATE:",null,null,"SIGN:",null,null,null,"2013-09-17",null,null,null,null,"0014",null,null,null,null,null,null,null,null,null,null,null,null,null,null,null,null,null,null,null,null,null,null,"2.5",null,null,null,null,null,"14",null,null,null,null,null,"NO"]
[null,null,null,null,null,null,null,null,null,null,null,null,null,"2013-09-18",null,null,null,null,"0015",null,null,null,null,null,null,null,null,null,null,null,null,null,null,null,null,"2.2.1 TEST REPORTS & CERTIFICATES",null,null,null,null,null,null,null,null,null,null,null,"15",null,null,null,null,null,"INVESTIGATE"]
["QUALITY:",null,null,null,null,null,"DATE:","2013-09-05",null,"SIGN:",null,null,null,"2013-09-19",null,null,null,null,"0016",null,null,null,null,null,null,null,null,null,null,null,null,null,null,null,null,"2.2.2 DOCUMENTATION NOT AVAILABLE / ADEQUATE",null,null,null,null,null,"3.1",null,null,null,null,null,"16"]
[null,null,null,null,null,null,null,null,null,null,null,null,null,"2013-09-20",null,null,null,null,"0016",null,null,null,null,null,null,null,null,null,null,null,null,null,null,null,null,null,null,null,null,null,null,"3.2",null,null,null,null,null,"17"]
[null,null,null,null,null,null,null,null,null,null,null,null,null,"2013-09-21",null,null,null,null,"0017",null,null,null,null,null,null,null,null,null,null,null,null,null,null,null,null,"2.2.3 PROCEDURES / RECORDS NON COMPLIANCE",null,null,null,null,null,"3.3",null,null,null,null,null,"18"]
[null,null,null,null,null,null,null,null,null,null,null,null,null,"2013-09-22",null,null,null,null,"0018",null,null,null,null,null,null,null,null,null,null,null,null,null,null,null,null,"2.2.4 MATERIAL TEST CERTIFICATE (MTC)",null,null,null,null,null,"3.4",null,null,null,null,null,"19"]
[null,null,null,null,null,null,null,null,null,null,null,null,null,"2013-09-23",null,null,null,null,"0019",null,null,null,null,null,null,null,null,null,null,null,null,null,null,null,null,"2.2.5 QUALIFICATION & RECORDS",null,null,null,null,null,"3.5",null,null,null,null,null,"20"]
[null,null,null,null,null,null,null,null,null,null,null,null,null,"2013-09-24",null,null,null,null,"0020",null,null,null,null,null,null,null,null,null,null,null,null,null,null,null,null,"2.2.6 APPROVED DRAWINGS",null,null,null,null,null,null,null,null,null,null,null,"21"]
[null,null,null,null,null,null,null,null,null,null,null,null,null,"2013-09-25",null,null,null,null,"0021",null,null,null,null,null,null,null,null,null,null,null,null,null,null,null,null,"2.2.7 CALIBRATION CERTIFICATE",null,null,null,null,null,"4.1",null,null,null,null,null,"22"]
[null,null,null,null,null,null,null,null,null,null,null,null,null,"2013-09-26",null,null,null,null,"0022",null,null,null,null,null,null,null,null,null,null,null,null,null,null,null,null,"2.2.8 MISMATCH - KKS/ITP NO.S",null,null,null,null,null,"4.2",null,null,null,null,null,"23"]
[null,null,null,null,null,null,null,null,null,null,null,null,null,{"$f":"N91+1","v":"2013-09-27"},null,null,null,null,"0023",null,null,null,null,null,null,null,null,null,null,null,null,null,null,null,null,"2.2.9 TECHNICAL SPECIFICATIONS",null,null,null,null,null,"4.3",null,null,null,null,null,"24"]
[null,null,null,null,null,null,null,null,null,null,null,null,null,"2013-09-28",null,null,null,null,"0024",null,null,null,null,null,null,null,null,null,null,null,null,null,null,null,null,null,null,null,null,null,null,"4.4",null,null,null,null,null,"25"]
[null,null,null,null,null,null,null,null,null,null,null,null,null,"2013-09-29",null,null,null,null,"0025",null,null,null,null,null,null,null,null,null,null,null,null,null,null,null,null,null,null,null,null,null,null,"4.5",null,null,null,null,null,"26"]
[null,null,null,null,null,null,null,null,null,null,null,null,null,"2013-09-30",null,null,null,null,"0026",null,null,null,null,null,null,null,null,null,null,null,null,null,null,null,null,"3.1.1",null,null,null,null,null,null,null,null,null,null,null,"27"]
[null,null,null,null,null,null,null,null,null,null,null,null,null,"2013-10-01",null,null,null,null,"0027",null,null,null,null,null,null,null,null,null,null,null,null,null,null,null,null,"3.1.2",null,null,null,null,null,"5.1",null,null,null,null,null,"28"]
[null,null,null,null,null,null,null,null,null,null,null,null,null,"2013-10-02",null,null,null,null,"0030",null,null,null,null,null,null,null,null,null,null,null,null,null,null,null,null,"3.1.3",null,null,null,null,null,"5.2",null,null,null,null,null,"29"]
[null,null,null,null,null,null,null,null,null,null,null,null,null,"2013-10-03",null,null,null,null,"0031",null,null,null,null,null,null,null,null,null,null,null,null,null,null,null,null,null,null,null,null,null,null,"5.3",null,null,null,null,null,"30"]
[null,null,null,null,null,null,null,null,null,null,null,null,null,"2013-10-04",null,null,null,null,"0032",null,null,null,null,null,null,null,null,null,null,null,null,null,null,null,null,"3.2.1",null,null,null,null,null,"5.4"]
[null,null,null,null,null,null,null,null,null,null,null,null,null,"2013-10-05",null,null,null,null,"0033",null,null,null,null,null,null,null,null,null,null,null,null,null,null,null,null,"3.2.2",null,null,null,null,null,"5.5"]
[null,null,null,null,null,null,null,null,null,null,null,null,null,"2013-10-06",null,null,null,null,"0034",null,null,null,null,null,null,null,null,null,null,null,null,null,null,null,null,"3.2.3"]
[null,null,null,null,null,null,null,null,null,null,null,null,null,"2013-10-07",null,null,null,null,"0035",null,null,null,null,null,null,null,null,null,null,null,null,null,null,null,null,null,null,null,null,null,null,"6.1"]
[null,null,null,null,null,null,null,null,null,null,null,null,null,null,null,null,null,null,"0036",null,null,null,null,null,null,null,null,null,null,null,null,null,null,null,null,"4.1.1",null,null,null,null,null,"6.2"]
[null,null,null,null,null,null,null,null,null,null,null,null,null,null,null,null,null,null,"0037",null,null,null,null,null,null,null,null,null,null,null,null,null,null,null,null,"4.1.2",null,null,null,null,null,"6.3"]
[null,null,null,null,null,null,null,null,null,null,null,null,null,null,null,null,null,null,"0038",null,null,null,null,null,null,null,null,null,null,null,null,null,null,null,null,"4.1.3",null,null,null,null,null,"6.4"]
[null,null,null,null,null,null,null,null,null,null,null,null,null,null,null,null,null,null,"0039",null,null,null,null,null,null,null,null,null,null,null,null,null,null,null,null,null,null,null,null,null,null,"6.5"]
[null,null,null,null,null,null,null,null,null,null,null,null,null,null,null,null,null,null,"0040",null,null,null,null,null,null,null,null,null,null,null,null,null,null,null,null,"4.2.1"]
[null,null,null,null,null,null,null,null,null,null,null,null,null,null,null,null,null,null,"0041",null,null,null,null,null,null,null,null,null,null,null,null,null,null,null,null,"4.2.2",null,null,null,null,null,"7.1"]
[null,null,null,null,null,null,null,null,null,null,null,null,null,null,null,null,null,null,"0042",null,null,null,null,null,null,null,null,null,null,null,null,null,null,null,null,"4.2.3",null,null,null,null,null,"7.2"]
[null,null,null,null,null,null,null,null,null,null,null,null,null,null,null,null,null,null,"0043",null,null,null,null,null,null,null,null,null,null,null,null,null,null,null,null,null,null,null,null,null,null,"7.3"]
[null,null,null,null,null,null,null,null,null,null,null,null,null,null,null,null,null,null,"0044",null,null,null,null,null,null,null,null,null,null,null,null,null,null,null,null,null,null,null,null,null,null,"7.4"]
[null,null,null,null,null,null,null,null,null,null,null,null,null,null,null,null,null,null,"0045",null,null,null,null,null,null,null,null,null,null,null,null,null,null,null,null,null,null,null,null,null,null,"7.5"]
[null,null,null,null,null,null,null,null,null,null,null,null,null,null,null,null,null,null,"0046"]
[null,null,null,null,null,null,null,null,null,null,null,null,null,null,null,null,null,null,"0047",null,null,null,null,null,null,null,null,null,null,null,null,null,null,null,null,null,null,null,null,null,null,"8.1"]
[null,null,null,null,null,null,null,null,null,null,null,null,null,null,null,null,null,null,"0048",null,null,null,null,null,null,null,null,null,null,null,null,null,null,null,null,null,null,null,null,null,null,"8.2"]
[null,null,null,null,null,null,null,null,null,null,null,null,null,null,null,null,null,null,"0049",null,null,null,null,null,null,null,null,null,null,null,null,null,null,null,null,null,null,null,null,null,null,"8.3"]
[null,null,null,null,null,null,null,null,null,null,null,null,null,null,null,null,null,null,"0050",null,null,null,null,null,null,null,null,null,null,null,null,null,null,null,null,null,null,null,null,null,null,"8.4"]
[null,null,null,null,null,null,null,null,null,null,null,null,null,null,null,null,null,null,"0051",null,null,null,null,null,null,null,null,null,null,null,null,null,null,null,null,null,null,null,null,null,null,"8.5"]
[null,null,null,null,null,null,null,null,null,null,null,null,null,null,null,null,null,null,"0052"]
[null,null,null,null,null,null,null,null,null,null,null,null,null,null,null,null,null,null,"0053"]
[null,null,null,null,null,null,null,null,null,null,null,null,null,null,null,null,null,null,"0054"]
[null,null,null,null,null,null,null,null,null,null,null,null,null,null,null,null,null,null,"0055"]
[null,null,null,null,null,null,null,null,null,null,null,null,null,null,null,null,null,null,"0056"]
[null,null,null,null,null,null,null,null,null,null,null,null,null,null,null,null,null,null,"0057"]
[null,null,null,null,null,null,null,null,null,null,null,null,null,null,null,null,null,null,"0058"]
[null,null,null,null,null,null,null,null,null,null,null,null,null,null,null,null,null,null,"0059"]
[null,null,null,null,null,null,null,null,null,null,null,null,null,null,null,null,null,null,"0060"]
[null,null,null,null,null,null,null,null,null,null,null,null,null,null,null,null,null,null,"0061"]
[null,null,null,null,null,null,null,null,null,null,null,null,null,null,null,null,null,null,"0062"]
[null,null,null,null,null,null,null,null,null,null,null,null,null,null,null,null,null,null,"0063"]
[null,null,null,null,null,null,null,null,null,null,null,null,null,null,null,null,null,null,"0064"]
[null,null,null,null,null,null,null,null,null,null,null,null,null,null,null,null,null,null,"0065"]
[null,null,null,null,null,null,null,null,null,null,null,null,null,null,null,null,null,null,"0066"]
[null,null,null,null,null,null,null,null,null,null,null,null,null,null,null,null,null,null,"0067"]
[null,null,null,null,null,null,null,null,null,null,null,null,null,null,null,null,null,null,"0068"]
[null,null,null,null,null,null,null,null,null,null,null,null,null,null,null,null,null,null,"0069"]
[null,null,null,null,null,null,null,null,null,null,null,null,null,null,null,null,null,null,"0070"]
[null,null,null,null,null,null,null,null,null,null,null,null,null,null,null,null,null,null,"0071"]
[null,null,null,null,null,null,null,null,null,null,null,null,null,null,null,null,null,null,"0072"]
[null,null,null,null,null,null,null,null,null,null,null,null,null,null,null,null,null,null,"0073"]
[null,null,null,null,null,null,null,null,null,null,null,null,null,null,null,null,null,null,"0074"]
[null,null,null,null,null,null,null,null,null,null,null,null,null,null,null,null,null,null,"0075"]
[null,null,null,null,null,null,null,null,null,null,null,null,null,null,null,null,null,null,"0076"]
[null,null,null,null,null,null,null,null,null,null,null,null,null,null,null,null,null,null,"0077"]
[null,null,null,null,null,null,null,null,null,null,null,null,null,null,null,null,null,null,"0078"]
[null,null,null,null,null,null,null,null,null,null,null,null,null,null,null,null,null,null,"0079"]
[null,null,null,null,null,null,null,null,null,null,null,null,null,null,null,null,null,null,"0080"]
[null,null,null,null,null,null,null,null,null,null,null,null,null,null,null,null,null,null,"0081"]
[null,null,null,null,null,null,null,null,null,null,null,null,null,null,null,null,null,null,"0082"]
[null,null,null,null,null,null,null,null,null,null,null,null,null,null,null,null,null,null,"0083"]
[null,null,null,null,null,null,null,null,null,null,null,null,null,null,null,null,null,null,"0084"]
[null,null,null,null,null,null,null,null,null,null,null,null,null,null,null,null,null,null,"0085"]
[null,null,null,null,null,null,null,null,null,null,null,null,null,null,null,null,null,null,"0086"]
[null,null,null,null,null,null,null,null,null,null,null,null,null,null,null,null,null,null,"0087"]
[null,null,null,null,null,null,null,null,null,null,null,null,null,null,null,null,null,null,"0088"]
[null,null,null,null,null,null,null,null,null,null,null,null,null,null,null,null,null,null,"0089"]
[null,null,null,null,null,null,null,null,null,null,null,null,null,null,null,null,null,null,"0090"]
[null,null,null,null,null,null,null,null,null,null,null,null,null,null,null,null,null,null,"0091"]
[null,null,null,null,null,null,null,null,null,null,null,null,null,null,null,null,null,null,"0092"]
[null,null,null,null,null,null,null,null,null,null,null,null,null,null,null,null,null,null,"0093"]
[null,null,null,null,null,null,null,null,null,null,null,null,null,null,null,null,null,null,"0094"]
[null,null,null,null,null,null,null,null,null,null,null,null,null,null,null,null,null,null,"0095"]
[null,null,null,null,null,null,null,null,null,null,null,null,null,null,null,null,null,null,"0096"]
[null,null,null,null,null,null,null,null,null,null,null,null,null,null,null,null,null,null,"0097"]
[null,null,null,null,null,null,null,null,null,null,null,null,null,null,null,null,null,null,"0098"]
[null,null,null,null,null,null,null,null,null,null,null,null,null,null,null,null,null,null,"0099"]
[null,null,null,null,null,null,null,null,null,null,null,null,null,null,null,null,null,null,"0100"]